bitfinex/quotes_BTCUSD_20250328
["timestamp","ask_amount","ask_price","bid_price","bid_amount"]
[1743170638181,0.69888019,85062.0,85061.0,5e-07]
[1743170638826,1.11658019,85062.0,85061.0,5e-07]
[1743170639242,0.56144185,85054.0,85053.0,9.3e-07]
[1743170639455,1.09339949,85054.0,85053.0,9.3e-07]
[1743170640620,1.09339949,85054.0,85011.0,0.63957111]
[1743170640621,0.246927,85045.0,85011.0,0.63957111]
[1743170640838,0.246953,85036.0,85018.0,0.13968]
[1743170641000,0.66121064,85036.0,85015.0,0.13968]
[1743170641743,0.66592264,85036.0,85015.0,0.13968]
[1743170641915,0.67745668,85036.0,85035.0,0.00078264]
[1743170642052,0.67745668,85036.0,85035.0,0.00878264]
[1743170642670,0.67745668,85036.0,85035.0,0.00378264]
[1743170643093,0.76926945,85036.0,85035.0,0.00378264]
[1743170643296,0.67745668,85036.0,85035.0,0.00378264]
[1743170643721,0.67745668,85036.0,85035.0,0.00078264]
[1743170644131,0.67745668,85036.0,85035.0,0.00378264]
[1743170645235,0.56319904,85036.0,85035.0,0.00378264]
[1743170645669,0.67745668,85036.0,85035.0,0.00378264]
[1743170646331,0.79171432,85036.0,85035.0,0.00378264]
[1743170646581,0.49171432,85036.0,85035.0,0.00378264]
[1743170647003,0.67745668,85036.0,85035.0,0.00378264]
[1743170647220,0.70085994,85036.0,85035.0,0.00378264]
[1743170647433,0.70085994,85036.0,85035.0,0.00278264]
[1743170648141,0.55859726,85036.0,85035.0,0.00078264]
[1743170648346,0.27035626,85036.0,85035.0,0.00078264]
[1743170648960,0.02340326,85036.0,85035.0,0.00078264]
[1743170649195,0.004712,85040.0,85035.0,0.00078264]
[1743170649408,0.0009961,85053.0,85035.0,0.04648264]
[1743170649409,0.011757,85051.0,85035.0,0.04648264]
[1743170649622,0.011758,85046.0,85035.0,0.04648264]
[1743170649836,0.235169,85045.0,85035.0,0.04648264]
[1743170650006,0.246931,85044.0,85035.0,0.04648264]
[1743170650221,0.235186,85039.0,85035.0,0.04648264]
[1743170650574,0.246953,85036.0,85035.0,0.00078264]
[1743170650752,0.36121064,85036.0,85035.0,0.00078264]
[1743170651271,0.36121064,85036.0,85035.0,0.00478264]
[1743170651627,0.36121064,85036.0,85035.0,0.00578264]
[1743170651804,0.235189,85038.0,85035.0,0.00578264]
[1743170651805,0.246948,85038.0,85035.0,0.00578264]
[1743170652022,0.235193,85037.0,85035.0,0.00278264]
[1743170652226,0.011759,85036.0,85035.0,0.00478264]
[1743170652608,0.011759,85036.0,85035.0,0.00278264]
[1743170653022,0.235193,85037.0,85035.0,0.00378264]
[1743170653232,0.011759,85036.0,85035.0,0.00378264]
[1743170654257,0.246953,85036.0,85035.0,0.00378264]
[1743170654475,0.246953,85036.0,85035.0,0.00278264]
[1743170654677,0.246953,85036.0,85035.0,0.00478264]
[1743170654886,0.235192,85037.0,85035.0,0.00478264]
[1743170655201,0.235176,85043.0,85035.0,0.00478264]
[1743170655462,0.011758,85045.0,85035.0,0.00478264]
[1743170655663,0.235175,85043.0,85035.0,0.00478264]
[1743170655865,0.235175,85043.0,85035.0,0.00278264]
[1743170656080,0.4177,85049.0,85036.0,0.1245]
[1743170656282,0.011756,85058.0,85036.0,0.23875764]
[1743170656434,0.23515,85052.0,85036.0,0.23875764]
[1743170656598,0.235147,85053.0,85036.0,0.23875764]
[1743170656996,0.0013221,85054.0,85036.0,0.23875764]
[1743170657217,0.235156,85050.0,85036.0,0.23875764]
[1743170657422,0.235156,85050.0,85035.0,0.00278264]
[1743170657423,0.235186,85039.0,85035.0,0.00278264]
[1743170657621,0.235189,85038.0,85035.0,0.00278264]
[1743170657831,0.246953,85036.0,85035.0,0.00078264]
[1743170659056,0.246953,85036.0,85035.0,0.00378264]
[1743170660658,0.246953,85036.0,85035.0,0.00078264]
[1743170662009,0.37994837,85036.0,85035.0,0.00078264]
[1743170662203,0.36121064,85036.0,85035.0,0.00078264]
[1743170667525,0.66121064,85036.0,85035.0,0.00078264]
[1743170668008,0.66121064,85036.0,85035.0,6.4e-07]
[1743170668009,1.07891064,85036.0,85035.0,6.4e-07]
[1743170668246,1.09345149,85036.0,85035.0,6.4e-07]
[1743170668449,0.67575149,85036.0,85035.0,6.4e-07]
[1743170669056,0.66321064,85036.0,85035.0,6.4e-07]
[1743170669847,0.66521064,85036.0,85035.0,6.4e-07]
[1743170670013,0.66321064,85036.0,85035.0,6.4e-07]
[1743170670224,0.66121064,85036.0,85035.0,6.4e-07]
[1743170670464,0.66321064,85036.0,85035.0,6.4e-07]
[1743170670663,0.66521064,85036.0,85035.0,6.4e-07]
[1743170671286,0.77946828,85036.0,85035.0,6.4e-07]
[1743170671695,0.66321064,85036.0,85035.0,6.4e-07]
[1743170672060,0.66121064,85036.0,85035.0,6.4e-07]
[1743170672911,0.23526,85012.0,85000.0,3.10114382]
[1743170673109,0.66128064,85012.0,85000.0,3.10114382]
[1743170673484,0.547023,85012.0,85000.0,3.10114382]
[1743170674425,0.66128064,85012.0,85000.0,3.10114382]
[1743170674648,0.67312404,85012.0,85000.0,3.10114382]
[1743170675671,0.67312404,85012.0,85010.0,3.1e-07]
[1743170675672,0.3487,85011.0,85010.0,3.1e-07]
[1743170675877,0.3487,85011.0,85000.0,3.10114382]
[1743170675878,0.547055,85001.0,85000.0,2.11082913]
[1743170676089,0.66131264,85001.0,85000.0,2.11082913]
[1743170676299,0.77557028,85001.0,85000.0,2.11082913]
[1743170676501,0.66131264,85001.0,85000.0,1.28610813]
[1743170676715,0.67585349,85001.0,85000.0,0.74803913]
[1743170677268,0.75279683,85001.0,85000.0,0.74803913]
[1743170677468,0.75379683,85001.0,85000.0,0.74803913]
[1743170677670,0.88331878,85001.0,85000.0,0.74803913]
[1743170677874,0.78915483,85001.0,85000.0,0.74803913]
[1743170678128,0.79015483,85001.0,85000.0,0.74803913]
[1743170678588,0.77561398,85001.0,85000.0,0.74303913]
[1743170679635,0.77461398,85001.0,85000.0,0.74303913]
[1743170680015,0.89087162,85001.0,85000.0,0.74303913]
[1743170680416,0.77661398,85001.0,85000.0,0.74303913]
[1743170682482,0.70011398,85001.0,85000.0,0.74303913]
[1743170687364,0.58585634,85001.0,85000.0,0.74303913]
[1743170687520,0.58585634,85001.0,85000.0,0.74320853]
[1743170688132,0.55049834,85001.0,85000.0,0.74320853]
[1743170688578,0.58585134,85001.0,85000.0,0.74320853]
[1743170689190,0.00344334,85001.0,85000.0,0.74320853]
[1743170689364,0.25049834,85001.0,85000.0,0.74320853]
[1743170690019,0.24949834,85001.0,85000.0,0.74320853]
[1743170690288,0.24749834,85001.0,85000.0,0.74520853]
[1743170690900,0.54749834,85001.0,85000.0,0.74520853]
[1743170691097,0.54749834,85001.0,85000.0,0.74320853]
[1743170691508,0.54849834,85001.0,85000.0,0.74320853]
[1743170692295,0.66275598,85001.0,85000.0,0.74320853]
[1743170693352,0.66375598,85001.0,85000.0,0.74320853]
[1743170697303,0.66375598,85001.0,85000.0,5.3e-07]
[1743170697715,0.67829683,85001.0,85000.0,5.3e-07]
[1743170697968,0.67829683,85001.0,84983.0,0.0003382]
[1743170697969,0.547104,84984.0,84983.0,4.7e-07]
[1743170698175,0.66136164,84984.0,84983.0,4.7e-07]
[1743170699528,0.547119,84979.0,84978.0,7.2e-07]
[1743170699737,0.66137664,84979.0,84978.0,7.2e-07]
[1743170700944,0.66337664,84979.0,84978.0,7.2e-07]
[1743170701145,0.67213339,84979.0,84978.0,7.2e-07]
[1743170701350,0.630303,84950.0,84949.0,9.7e-07]
[1743170701560,0.630303,84950.0,84929.0,0.0001029]
[1743170701561,0.247279,84924.0,84923.0,8e-08]
[1743170701755,0.247279,84924.0,84904.0,0.0128232]
[1743170701756,0.011777,84911.0,84904.0,0.0128232]
[1743170701972,0.24732,84910.0,84904.0,0.0128232]
[1743170702210,0.54732,84910.0,84904.0,0.0128232]
[1743170702418,0.54732,84910.0,84881.0,0.002]
[1743170702419,0.235608,84887.0,84885.0,0.3773667]
[1743170702632,0.247388,84887.0,84885.0,0.3773667]
[1743170702853,0.11524874,84910.0,84885.0,0.3773667]
[1743170703048,0.0009911,84910.0,84886.0,0.11425764]
[1743170703246,0.0009911,84910.0,84887.0,0.11425764]
[1743170703660,0.252323,84910.0,84909.0,0.001]
[1743170704110,0.47141957,84910.0,84909.0,0.001]
[1743170704283,0.66658064,84910.0,84909.0,0.001]
[1743170704487,0.11925764,84910.0,84909.0,0.001]
[1743170704726,0.00044252,84911.0,84881.0,0.14076]
[1743170704727,0.00044252,84911.0,84890.0,0.19994251]
[1743170704947,0.235548,84909.0,84893.0,0.0001694]
[1743170705153,0.011777,84906.0,84894.0,0.11425764]
[1743170705283,0.235559,84905.0,84894.0,0.11425764]
[1743170705486,0.247336,84905.0,84895.0,0.70152]
[1743170705711,0.00143342,84911.0,84896.0,0.11425764]
[1743170706081,0.00143342,84911.0,84897.0,1.71049385]
[1743170706388,0.00143342,84911.0,84899.0,0.01454085]
[1743170706389,0.00044252,84911.0,84899.0,0.01454085]
[1743170706519,0.011773,84933.0,84898.0,0.11425764]
[1743170706520,0.0009943,84924.0,84908.0,0.11425764]
[1743170706721,0.0009943,84924.0,84911.0,0.01454085]
[1743170706946,0.011772,84941.0,84915.0,0.01454085]
[1743170707170,0.005,84945.0,84917.0,0.01454085]
[1743170707381,0.235454,84943.0,84918.0,0.11425764]
[1743170707644,0.247223,84944.0,84918.0,0.11425764]
[1743170707920,0.011773,84936.0,84919.0,0.00520735]
[1743170708076,0.001,84924.0,84920.0,0.11425764]
[1743170708364,0.001,84924.0,84921.0,0.14144]
[1743170709391,0.001,84924.0,84911.0,0.002]
[1743170709642,0.011775,84924.0,84912.0,0.70176]
[1743170709876,0.011774,84930.0,84918.0,0.002]
[1743170710104,0.0009917,84929.0,84919.0,0.11425764]
[1743170710372,0.0009917,84929.0,84912.0,0.5602]
[1743170710634,0.235506,84924.0,84913.0,0.11425764]
[1743170710898,0.235531,84915.0,84912.0,0.5602]
[1743170711120,0.235534,84914.0,84912.0,0.5602]
[1743170711290,0.24731,84914.0,84913.0,0.1416]
[1743170711498,0.247305,84916.0,84913.0,0.1416]
[1743170711700,0.235506,84924.0,84913.0,0.1416]
[1743170711902,0.0009947,84929.0,84914.0,0.00235495]
[1743170712174,0.011774,84926.0,84913.0,0.25585764]
[1743170712672,0.235533,84914.0,84912.0,0.5602]
[1743170712875,0.011776,84918.0,84914.0,0.14164]
[1743170713026,0.011775,84921.0,84914.0,0.14164]
[1743170713027,0.235519,84919.0,84914.0,0.14164]
[1743170713236,0.011776,84916.0,84912.0,0.5602]
[1743170713442,0.235495,84928.0,84915.0,0.14156]
[1743170713643,0.247253,84933.0,84915.0,0.14156]
[1743170713828,0.235487,84931.0,84916.0,0.11425764]
[1743170714035,0.235487,84931.0,84917.0,0.1416]
[1743170714036,0.011774,84927.0,84917.0,0.1416]
[1743170714233,0.247271,84927.0,84918.0,0.11425764]
[1743170714751,0.011774,84926.0,84912.0,0.002]
[1743170714968,0.235512,84922.0,84919.0,0.56024]
[1743170715172,0.235512,84922.0,84912.0,0.002]
[1743170715173,0.235535,84913.0,84912.0,0.002]
[1743170715690,0.247311,84913.0,84912.0,0.70376]
[1743170715916,0.235539,84912.0,84900.0,0.01826509]
[1743170716125,0.235529,84915.0,84900.0,0.01826509]
[1743170716331,0.011775,84920.0,84900.0,0.01826509]
[1743170716530,0.011775,84923.0,84909.0,0.81593764]
[1743170716728,0.235514,84921.0,84909.0,0.81593764]
[1743170716974,0.011775,84922.0,84909.0,0.81593764]
[1743170716975,0.001,84913.0,84912.0,0.002]
[1743170717158,0.001,84913.0,84912.0,0.11625764]
[1743170717570,0.011775,84923.0,84912.0,0.11625764]
[1743170717571,0.48258906,84951.0,84912.0,0.11425764]
[1743170717769,0.011775,84922.0,84913.0,0.11425764]
[1743170717975,0.235522,84918.0,84913.0,0.11425764]
[1743170718115,0.235529,84915.0,84914.0,0.14132]
[1743170718588,0.011776,84916.0,84909.0,0.56224]
[1743170718589,0.235543,84910.0,84909.0,0.56224]
[1743170718764,0.011776,84914.0,84909.0,0.56224]
[1743170718765,0.235534,84914.0,84909.0,0.70348]
[1743170718963,0.235531,84915.0,84909.0,0.70348]
[1743170719195,0.235531,84915.0,84909.0,0.70148]
[1743170719423,0.0059997,84929.0,84910.0,0.11425764]
[1743170719553,0.0009997,84929.0,84910.0,0.11425764]
[1743170719761,0.001,84913.0,84912.0,0.002]
[1743170719963,0.001,84913.0,84912.0,0.11625764]
[1743170720309,0.001,84913.0,84912.0,0.14257449]
[1743170720510,0.0009997,84929.0,84920.0,0.235514]
[1743170720683,0.247226,84942.0,84921.0,0.11661217]
[1743170720886,0.005,84941.0,84921.0,0.11661217]
[1743170721088,0.011772,84942.0,84921.0,0.11425764]
[1743170721295,0.3,84944.0,84922.0,0.00235447]
[1743170721496,0.235464,84939.0,84921.0,0.11425764]
[1743170721700,0.3,84944.0,84923.0,0.11425764]
[1743170721879,0.011773,84940.0,84924.0,0.14104]
[1743170722220,0.247227,84942.0,84925.0,0.11425764]
[1743170722361,0.011772,84942.0,84925.0,0.11425764]
[1743170722567,0.24727,84927.0,84926.0,0.141]
[1743170722768,0.247265,84929.0,84926.0,0.14096]
[1743170722963,0.235496,84927.0,84921.0,0.001]
[1743170723167,0.235496,84927.0,84922.0,0.14092]
[1743170723403,0.235496,84927.0,84923.0,0.14092]
[1743170723404,0.24728,84924.0,84923.0,0.14092]
[1743170723891,0.247291,84920.0,84908.0,0.00013199]
[1743170724089,0.235526,84917.0,84910.0,0.25513764]
[1743170724240,0.235527,84916.0,84910.0,0.14088]
[1743170724440,0.235521,84918.0,84910.0,0.14088]
[1743170724644,0.235516,84920.0,84910.0,0.14088]
[1743170724848,0.0009966,84927.0,84911.0,0.11442724]
[1743170725025,0.0127706,84927.0,84911.0,0.11442724]
[1743170725364,0.001,84920.0,84911.0,0.11442724]
[1743170725566,0.01,84913.0,84911.0,0.11442724]
[1743170726518,0.01,84913.0,84911.0,0.11642724]
[1743170726920,0.01,84913.0,84912.0,0.14068]
[1743170727173,0.01,84913.0,84912.0,0.25493764]
[1743170727374,0.012,84913.0,84912.0,0.25493764]
[1743170727716,0.012,84913.0,84912.0,0.68653149]
[1743170727925,0.012,84913.0,84912.0,1.03253149]
[1743170728124,0.001,84913.0,84912.0,4.54809649]
[1743170728347,0.001,84913.0,84912.0,2.89754649]
[1743170728662,0.57543117,84971.0,84912.0,2.89754649]
[1743170728663,0.007,84959.0,84931.0,0.011774]
[1743170728832,0.002,84959.0,84942.0,0.011772]
[1743170729022,0.002,84959.0,84945.0,0.01454085]
[1743170729251,0.002,84959.0,84950.0,0.235432]
[1743170729470,0.002,84959.0,84943.0,0.572052]
[1743170729471,0.002,84959.0,84951.0,0.26927849]
[1743170730073,0.002,84959.0,84951.0,0.26941048]
[1743170730447,0.003,84959.0,84951.0,0.26941048]
[1743170730884,0.002,84959.0,84951.0,0.11438963]
[1743170731111,0.002,84959.0,84952.0,0.14036]
[1743170731315,0.003,84959.0,84953.0,0.14036]
[1743170732267,0.003,84959.0,84954.0,0.11425764]
[1743170732626,0.002,84959.0,84954.0,0.11425764]
[1743170732834,0.23541,84958.0,84954.0,0.11425764]
[1743170733030,0.23541,84958.0,84951.0,0.00013199]
[1743170733031,0.252195,84953.0,84952.0,0.005]
[1743170733253,0.252195,84953.0,84952.0,0.01]
[1743170733254,0.66645264,84953.0,84952.0,0.01]
[1743170733803,0.552198,84952.0,84951.0,0.00013199]
[1743170733931,0.66645564,84952.0,84951.0,0.00013199]
[1743170734118,0.67530162,84952.0,84951.0,0.00013199]
[1743170735880,0.78955926,84952.0,84951.0,0.00013199]
[1743170736399,0.67530162,84952.0,84951.0,9.9e-07]
[1743170736601,0.67630162,84952.0,84951.0,9.9e-07]
[1743170737244,0.66845564,84952.0,84951.0,9.9e-07]
[1743170739015,0.554198,84952.0,84951.0,9.9e-07]
[1743170739222,0.254198,84952.0,84951.0,9.9e-07]
[1743170739424,0.249198,84952.0,84951.0,9.9e-07]
[1743170739773,0.253198,84952.0,84951.0,9.9e-07]
[1743170739974,0.36645564,84952.0,84951.0,9.9e-07]
[1743170740176,0.36645564,84952.0,84951.0,0.00100099]
[1743170740748,0.36645564,84952.0,84951.0,9.9e-07]
[1743170740948,0.36645564,84952.0,84951.0,0.00300099]
[1743170740949,0.66645564,84952.0,84951.0,0.00300099]
[1743170742347,0.66645564,84952.0,84951.0,0.00200099]
[1743170742543,0.552198,84952.0,84951.0,0.00300099]
[1743170742744,0.547198,84952.0,84951.0,0.00300099]
[1743170742950,0.547198,84952.0,84951.0,9.9e-07]
[1743170743175,0.552198,84952.0,84951.0,0.00100099]
[1743170743372,0.66645564,84952.0,84951.0,0.00200099]
[1743170744027,0.552198,84952.0,84951.0,0.00200099]
[1743170745126,0.66645564,84952.0,84951.0,0.00200099]
[1743170745741,0.552198,84952.0,84951.0,0.00200099]
[1743170747365,0.247198,84952.0,84951.0,0.00200099]
[1743170747564,0.005,84956.0,84951.0,0.00200099]
[1743170747565,0.005,84958.0,84951.0,0.00200099]
[1743170747771,0.01177,84956.0,84951.0,0.00200099]
[1743170748049,0.247198,84952.0,84951.0,0.00200099]
[1743170748414,0.235424,84954.0,84951.0,0.00100099]
[1743170748615,0.247198,84952.0,84951.0,0.00100099]
[1743170748814,0.235424,84953.0,84951.0,0.00100099]
[1743170749030,0.011771,84952.0,84951.0,0.00100099]
[1743170749233,0.3068867,84952.0,84951.0,0.00100099]
[1743170749414,0.552198,84952.0,84951.0,0.00100099]
[1743170749827,0.552198,84952.0,84951.0,9.9e-07]
[1743170750043,0.552198,84952.0,84951.0,0.00200099]
[1743170750231,0.66645564,84952.0,84951.0,0.00200099]
[1743170750438,0.66645564,84952.0,84951.0,9.9e-07]
[1743170750439,0.74625564,84952.0,84951.0,9.9e-07]
[1743170750635,0.74625564,84952.0,84951.0,0.00300099]
[1743170751493,0.74625564,84952.0,84951.0,9.9e-07]
[1743170751856,0.74625564,84952.0,84951.0,0.00200099]
[1743170752061,0.74625564,84952.0,84951.0,9.9e-07]
[1743170752463,0.74225564,84952.0,84951.0,9.9e-07]
[1743170752665,0.74725564,84952.0,84951.0,9.9e-07]
[1743170753289,0.80899649,84952.0,84951.0,9.9e-07]
[1743170754922,0.79445564,84952.0,84951.0,9.9e-07]
[1743170755133,0.79345564,84952.0,84951.0,9.9e-07]
[1743170755337,0.74625564,84952.0,84951.0,9.9e-07]
[1743170755503,0.74825564,84952.0,84951.0,9.9e-07]
[1743170755724,0.74625564,84952.0,84951.0,9.9e-07]
[1743170756126,0.75025564,84952.0,84951.0,9.9e-07]
[1743170757472,0.74925564,84952.0,84951.0,9.9e-07]
[1743170757605,0.75225564,84952.0,84951.0,9.9e-07]
[1743170758844,0.74925564,84952.0,84951.0,9.9e-07]
[1743170760238,0.66445564,84952.0,84951.0,9.9e-07]
[1743170760448,0.66945564,84952.0,84951.0,9.9e-07]
[1743170761818,0.66645564,84952.0,84951.0,9.9e-07]
[1743170762020,0.66345564,84952.0,84951.0,9.9e-07]
[1743170762217,0.66845564,84952.0,84951.0,9.9e-07]
[1743170762657,0.66545564,84952.0,84951.0,9.9e-07]
[1743170763142,0.66745564,84952.0,84951.0,9.9e-07]
[1743170764182,0.42325764,84952.0,84917.0,0.01833203]
[1743170764322,0.552297,84918.0,84917.0,0.01833203]
[1743170764673,0.552313,84912.0,84911.0,2.3e-07]
[1743170764841,0.66657064,84912.0,84911.0,2.3e-07]
[1743170765835,0.66670331,84912.0,84911.0,2.3e-07]
[1743170766200,0.67837679,84912.0,84911.0,2.3e-07]
[1743170766575,0.80156804,84912.0,84911.0,0.00100023]
[1743170766817,0.80156804,84912.0,84911.0,2.3e-07]
[1743170767021,0.80156804,84912.0,84880.0,0.00170367]
[1743170767022,0.552366,84894.0,84880.0,0.00170367]
[1743170767151,0.66662364,84894.0,84880.0,0.00170367]
[1743170767363,0.74812364,84894.0,84880.0,0.00170367]
[1743170768602,0.74312364,84894.0,84893.0,4e-07]
[1743170768805,0.552366,84894.0,84893.0,4e-07]
[1743170771242,0.252366,84894.0,84893.0,4e-07]
[1743170771561,0.27627549,84894.0,84893.0,4e-07]
[1743170772392,0.02390949,84894.0,84893.0,4e-07]
[1743170772597,0.03568849,84894.0,84893.0,0.00344477]
[1743170772811,0.03568849,84894.0,84893.0,4e-07]
[1743170773275,0.04068849,84894.0,84893.0,4e-07]
[1743170774171,0.247354,84899.0,84893.0,4e-07]
[1743170774172,0.005,84901.0,84893.0,4e-07]
[1743170774400,0.011777,84907.0,84893.0,4e-07]
[1743170774614,0.011777,84909.0,84893.0,0.1166135]
[1743170774817,0.235553,84907.0,84893.0,0.11625804]
[1743170775041,0.235549,84908.0,84894.0,0.0812]
[1743170775252,0.23556,84904.0,84894.0,0.0812]
[1743170775456,0.011777,84905.0,84894.0,0.0812]
[1743170775633,0.247339,84904.0,84894.0,0.0812]
[1743170775846,0.247323,84909.0,84894.0,0.0812]
[1743170776051,0.00013267,84912.0,84895.0,0.11425764]
[1743170776289,0.235542,84911.0,84895.0,0.11425764]
[1743170776514,0.00013267,84912.0,84895.0,0.11425764]
[1743170776515,0.011777,84905.0,84895.0,0.11425764]
[1743170776725,0.011778,84903.0,84893.0,4e-07]
[1743170776941,0.247366,84894.0,84893.0,4e-07]
[1743170777145,0.005,84895.0,84893.0,4e-07]
[1743170777793,0.011778,84900.0,84893.0,4e-07]
[1743170777794,0.005,84907.0,84894.0,0.003]
[1743170778056,0.005,84913.0,84895.0,0.11425764]
[1743170778264,0.011777,84911.0,84895.0,0.11425764]
[1743170778470,0.0009928,84916.0,84896.0,0.00235531]
[1743170778721,0.0009928,84916.0,84906.0,0.235552]
[1743170778935,0.235449,84944.0,84911.0,0.02631785]
[1743170778936,0.005,84941.0,84911.0,0.02631785]
[1743170779146,0.240455,84942.0,84921.0,0.23551]
[1743170779371,0.240455,84942.0,84922.0,0.25421764]
[1743170779372,0.011773,84938.0,84922.0,0.25421764]
[1743170779581,0.011773,84938.0,84912.0,0.353306]
[1743170779582,0.011775,84924.0,84923.0,0.13996]
[1743170779781,0.011776,84912.0,84911.0,0.70044]
[1743170780414,0.011776,84912.0,84911.0,0.56048]
[1743170781042,0.016776,84912.0,84911.0,0.56048]
[1743170781235,0.016776,84912.0,84911.0,0.56078806]
[1743170781448,0.04033819,84912.0,84911.0,0.56078806]
[1743170781844,0.04033819,84912.0,84911.0,0.00030806]
[1743170782268,0.235537,84913.0,84911.0,0.00030806]
[1743170782492,0.005,84930.0,84912.0,0.11425764]
[1743170782696,0.011775,84925.0,84912.0,0.11425764]
[1743170782905,0.23553,84915.0,84912.0,0.11425764]
[1743170783055,0.247293,84919.0,84912.0,0.11425764]
[1743170783267,0.235536,84913.0,84911.0,0.00130806]
[1743170783450,0.011776,84912.0,84911.0,0.00230806]
[1743170783894,0.016776,84912.0,84911.0,0.00230806]
[1743170784092,0.016776,84912.0,84911.0,0.00130806]
[1743170784514,0.31962876,84912.0,84911.0,0.00130806]
[1743170784667,0.316776,84912.0,84911.0,0.00030806]
[1743170784869,0.54529128,84912.0,84911.0,0.00030806]
[1743170785074,0.43103364,84912.0,84911.0,0.00330806]
[1743170785296,0.43103364,84912.0,84911.0,0.00030806]
[1743170785704,0.316776,84912.0,84911.0,0.00130806]
[1743170786631,0.43103364,84912.0,84911.0,0.00030806]
[1743170787655,0.43137184,84912.0,84911.0,0.00030806]
[1743170787808,0.43137184,84912.0,84911.0,0.00130806]
[1743170788055,0.54562948,84912.0,84911.0,6e-08]
[1743170788858,0.54562948,84912.0,84893.0,4e-07]
[1743170788859,0.247366,84894.0,84893.0,4e-07]
[1743170789009,0.252366,84894.0,84893.0,0.00044292]
[1743170789423,0.252366,84894.0,84869.0,0.00153639]
[1743170789424,0.247436,84870.0,84869.0,0.00153639]
[1743170791380,0.253436,84870.0,84869.0,0.00453639]
[1743170791618,0.253436,84870.0,84869.0,0.00153639]
[1743170791859,0.248436,84870.0,84869.0,0.00153639]
[1743170792303,0.253436,84870.0,84869.0,0.00153639]
[1743170792500,0.253436,84870.0,84869.0,0.00453639]
[1743170794126,0.248436,84870.0,84869.0,0.00453639]
[1743170794787,0.253436,84870.0,84869.0,0.00453639]
[1743170795012,0.35419252,84870.0,84869.0,0.00453639]
[1743170795446,0.553436,84870.0,84869.0,0.00453639]
[1743170795806,0.66769364,84870.0,84869.0,0.00453639]
[1743170797014,0.553436,84870.0,84869.0,0.00453639]
[1743170797480,0.552436,84870.0,84869.0,0.00153639]
[1743170800291,0.552436,84870.0,84869.0,0.00170559]
[1743170803385,0.66669364,84870.0,84869.0,0.00170559]
[1743170803864,0.66669364,84870.0,84859.0,0.02090911]
[1743170803865,0.552466,84860.0,84859.0,0.02090911]
[1743170804070,0.552469,84859.0,84858.0,8.6e-07]
[1743170804242,0.5525,84848.0,84847.0,6.7e-07]
[1743170804444,0.66675764,84848.0,84847.0,6.7e-07]
[1743170804644,0.78101528,84848.0,84847.0,6.7e-07]
[1743170804942,0.66675764,84848.0,84847.0,6.7e-07]
[1743170805273,0.66720172,84848.0,84847.0,6.7e-07]
[1743170805399,0.25294408,84848.0,84847.0,6.7e-07]
[1743170805613,0.00044408,84848.0,84847.0,6.7e-07]
[1743170806014,0.01222908,84848.0,84847.0,6.7e-07]
[1743170806905,0.01422908,84848.0,84847.0,6.7e-07]
[1743170807255,0.01922908,84848.0,84847.0,6.7e-07]
[1743170807458,0.28655783,84848.0,84847.0,6.7e-07]
[1743170807738,0.58655783,84848.0,84847.0,6.7e-07]
[1743170807865,0.51038672,84848.0,84847.0,6.7e-07]
[1743170808498,0.005,84836.0,84835.0,0.0071321]
[1743170808722,0.66679264,84836.0,84835.0,0.0071321]
[1743170809324,0.552535,84836.0,84835.0,0.0071321]
[1743170809536,0.252535,84836.0,84835.0,0.0071321]
[1743170809936,0.36679264,84836.0,84835.0,1e-07]
[1743170810279,0.66679264,84836.0,84835.0,1e-07]
[1743170810479,0.67881205,84836.0,84835.0,1e-07]
[1743170811962,0.67881205,84836.0,84806.0,0.00010957]
[1743170811963,0.552564,84826.0,84825.0,3.4e-07]
[1743170812158,0.74312164,84826.0,84825.0,3.4e-07]
[1743170812324,0.69312164,84826.0,84825.0,3.4e-07]
[1743170812562,0.70490964,84826.0,84825.0,3.4e-07]
[1743170813051,0.70490964,84826.0,84776.0,0.00011124]
[1743170813052,0.247708,84777.0,84776.0,0.00011124]
[1743170813248,0.247708,84777.0,84776.0,0.11436888]
[1743170813474,0.247708,84777.0,84776.0,0.00011124]
[1743170813675,0.235888,84786.0,84776.0,0.00011124]
[1743170814129,0.011794,84788.0,84777.0,0.11425764]
[1743170814347,0.0009871,84793.0,84781.0,0.016795]
[1743170814527,0.035437,84802.0,84783.0,0.01454085]
[1743170814727,0.011791,84806.0,84790.0,0.01454085]
[1743170814937,0.011791,84806.0,84791.0,0.11425764]
[1743170814938,0.0004438,84802.0,84791.0,0.11425764]
[1743170815427,0.235856,84798.0,84791.0,0.11425764]
[1743170815649,0.011792,84801.0,84792.0,0.14088]
[1743170815650,0.011792,84800.0,84792.0,0.14088]
[1743170815819,0.011792,84798.0,84792.0,0.25513764]
[1743170816034,0.235867,84794.0,84793.0,0.14084]
[1743170816247,0.235867,84794.0,84793.0,0.1408]
[1743170816248,0.24766,84794.0,84793.0,0.1408]
[1743170816449,0.011793,84795.0,84793.0,0.1408]
[1743170816450,0.247653,84796.0,84793.0,0.1408]
[1743170816870,0.247651,84797.0,84793.0,0.1408]
[1743170817079,0.247651,84797.0,84793.0,0.14076]
[1743170817080,0.247657,84795.0,84793.0,0.14076]
[1743170817293,0.011792,84798.0,84791.0,0.14084]
[1743170817515,0.011792,84797.0,84792.0,0.11425764]
[1743170817739,0.247654,84796.0,84792.0,0.11425764]
[1743170817958,0.011793,84793.0,84792.0,0.11425764]
[1743170818141,0.011792,84797.0,84776.0,0.00011124]
[1743170818142,0.011794,84782.0,84776.0,0.00011124]
[1743170818455,0.011795,84777.0,84776.0,0.11436888]
[1743170818611,0.011795,84777.0,84776.0,0.00011124]
[1743170819223,0.235911,84778.0,84776.0,0.14119124]
[1743170819441,0.0009846,84798.0,84782.0,0.005]
[1743170819656,0.0009846,84798.0,84787.0,0.0811]
[1743170819850,0.235859,84797.0,84788.0,0.11425764]
[1743170820115,0.235863,84795.0,84788.0,0.25573764]
[1743170820436,0.011794,84785.0,84776.0,0.00011124]
[1743170820647,0.011794,84785.0,84777.0,0.25585764]
[1743170820830,0.235896,84784.0,84777.0,0.25585764]
[1743170820993,0.235902,84781.0,84777.0,0.25585764]
[1743170821179,0.235896,84784.0,84777.0,0.25585764]
[1743170821578,0.011793,84792.0,84777.0,0.25585764]
[1743170821999,0.011794,84786.0,84777.0,0.11425764]
[1743170822202,0.011795,84780.0,84777.0,0.11425764]
[1743170822404,0.247708,84777.0,84776.0,0.00011124]
[1743170823629,0.58826674,84777.0,84776.0,0.00011124]
[1743170823837,0.49036564,84777.0,84776.0,0.00011124]